bitfinex/quotes_SOLUSD_20250918
["timestamp","ask_amount","ask_price","bid_price","bid_amount"]
[1758170482471,0.7,245.93,245.9,31.4]
[1758170482769,0.7,245.92,245.9,31.4]
[1758170482967,0.7,245.91,245.9,31.4]
[1758170483772,0.7,245.91,245.88,0.28432314]
[1758170483773,0.7,245.91,245.87,0.28432314]
[1758170483947,0.7,245.91,245.88,31.4]
[1758170484272,0.7,245.9,245.88,31.4]
[1758170484573,0.7,245.89,245.88,0.28432314]
[1758170484775,0.7,245.89,245.88,31.68432314]
[1758170486977,0.7,245.91,245.88,31.68432314]
[1758170487270,2.99563348,245.89,245.86,38.25404611]
[1758170487459,14.23111327,245.94,245.86,38.25404611]
[1758170487460,2.29563348,245.87,245.86,38.25404611]
[1758170487772,2.99563348,245.87,245.86,37.53404611]
[1758170488068,2.99563348,245.87,245.86,36.64404611]
[1758170489676,2.99563348,245.87,245.8,0.03]
[1758170489677,7.06282345,245.87,245.8,0.03]
[1758170489860,2.29563348,245.81,245.8,0.03]
[1758170490269,2.89563348,245.81,245.8,0.03]
[1758170490773,6.96381622,245.81,245.8,0.03]
[1758170491156,6.36381622,245.81,245.8,0.03]
[1758170492078,6.96381622,245.81,245.8,0.03]
[1758170495162,4.66818274,245.81,245.8,0.03]
[1758170495480,6.36381622,245.81,245.8,0.03]
[1758170496979,6.96381622,245.81,245.8,0.03]
[1758170499388,6.36381622,245.81,245.8,0.03]
[1758170507490,2.29563348,245.81,245.8,0.03]
[1758170508192,2.89563348,245.81,245.8,0.03]
[1758170509380,6.96381622,245.81,245.8,0.03]
[1758170513487,6.36381622,245.81,245.8,0.03]
[1758170514084,6.36381622,245.81,245.8,0.74]
[1758170514685,4.06818274,245.81,245.8,0.74]
[1758170515994,32.60643289,245.89,245.81,26.0]
[1758170515995,0.06,245.89,245.81,26.0]
[1758170516291,0.06,245.89,245.85,26.0]
[1758170516508,0.06,245.89,245.86,31.4]
[1758170516798,0.06,245.89,245.86,32.11]
[1758170516989,0.06,245.89,245.87,0.71]
[1758170517570,0.06,245.89,245.86,31.4]
[1758170517773,0.06,245.89,245.87,0.71]
[1758170519086,4.12699022,245.89,245.88,0.71]
[1758170523117,17.18977161,245.89,245.81,27.62753794]
[1758170523277,2.29563348,245.85,245.81,0.68]
[1758170523483,2.29563348,245.86,245.82,0.68]
[1758170523714,2.29563348,245.87,245.83,0.68]
[1758170523908,2.29563348,245.87,245.84,0.68]
[1758170524393,2.29563348,245.86,245.84,0.68]
[1758170524680,4.0676863,245.84,245.81,0.68]
[1758170524987,4.0676863,245.84,245.81,32.06]
[1758170525175,4.0676863,245.84,245.82,0.68]
[1758170525600,10.22714791,245.89,245.83,0.68]
[1758170525804,4.06702456,245.88,245.83,0.68]
[1758170526302,6.36265804,245.88,245.86,0.03]
[1758170527707,2.29563348,245.87,245.86,0.03]
[1758170528505,2.89563348,245.87,245.86,0.03]
[1758170529400,4.06702456,245.88,245.86,0.03]
[1758170529596,2.29563348,245.87,245.86,0.03]
[1758170530697,2.89563348,245.87,245.86,0.03]
[1758170531491,16.49122749,245.87,245.86,0.03]
[1758170531897,2.89563348,245.87,245.86,0.03]
[1758170533405,2.29563348,245.87,245.86,0.03]
[1758170534206,0.06,245.89,245.86,0.71]
[1758170535807,0.06,245.89,245.87,31.38]
[1758170536306,0.06,245.89,245.88,0.68]
[1758170544924,0.06,245.89,245.87,31.38]
[1758170545094,0.06,245.89,245.88,0.68]
[1758170547709,1.52957281,245.89,245.88,0.68]
[1758170548113,4.06702456,245.88,245.86,0.03]
[1758170548316,1.46957281,245.87,245.86,0.03]
[1758170548620,4.06702456,245.88,245.87,0.68]
[1758170549902,5.53659737,245.88,245.86,0.03]
[1758170550098,1.46957281,245.87,245.86,0.03]
[1758170552607,0.06,245.89,245.86,0.03]
[1758170552808,0.06,245.89,245.86,0.73]
[1758170553051,1.46957281,245.87,245.86,0.73]
[1758170553713,1.46957281,245.87,245.86,0.03]
[1758170554614,1.46957281,245.87,245.86,0.73]
[1758170554815,5.53676278,245.87,245.86,0.73]
[1758170555626,5.53676278,245.87,245.86,0.03]
[1758170557308,4.06718997,245.87,245.86,0.03]
[1758170557528,5.53676278,245.87,245.86,0.03]
[1758170557734,6.13676278,245.87,245.86,0.03]
[1758170559021,1.52957281,245.89,245.86,0.73]
[1758170559229,1.46957281,245.87,245.86,0.03]
[1758170559730,0.66,245.89,245.86,0.03]
[1758170559731,4.12691131,245.89,245.86,0.03]
[1758170559934,1.46957281,245.87,245.86,0.03]
[1758170560731,1.46957281,245.88,245.86,0.73]
[1758170560927,5.59648412,245.89,245.87,0.7]
[1758170561127,5.59648412,245.89,245.86,0.03]
[1758170561128,5.59648412,245.89,245.88,0.7]
[1758170561534,4.12691131,245.89,245.88,0.7]
[1758170561818,5.59648412,245.89,245.88,0.7]
[1758170562238,5.59648412,245.89,245.86,0.03]
[1758170562412,1.46957281,245.88,245.86,0.03]
[1758170562617,1.46957281,245.88,245.87,0.7]
[1758170562833,7.94786405,245.88,245.86,0.03]
[1758170563039,1.46957281,245.87,245.86,0.03]
[1758170563410,2.06957281,245.87,245.86,0.03]
[1758170563823,6.13676278,245.87,245.86,0.03]
[1758170564022,6.19676278,245.87,245.86,0.03]
[1758170568945,5.59676278,245.87,245.86,0.03]
[1758170570553,0.06,245.87,245.86,0.73]
[1758170581467,0.06,245.87,245.86,32.09]
[1758170582358,0.06,245.87,245.86,0.73]
[1758170582558,0.06,245.87,245.86,32.09]
[1758170589559,0.06,245.87,245.86,0.73]
[1758170589876,0.06,245.87,245.86,32.09]
[1758170598373,0.06,245.87,245.86,0.03]
[1758170598583,0.06,245.87,245.86,31.37]
[1758170600364,0.06,245.87,245.86,32.05]
[1758170603065,0.66,245.87,245.86,0.03]
[1758170603261,0.66,245.87,245.86,31.37]
[1758170603771,0.06,245.87,245.86,31.37]
[1758170605283,0.66,245.87,245.86,31.37]
[1758170605668,0.66,245.87,245.86,0.03]
[1758170605991,0.06,245.87,245.86,0.03]
[1758170608875,0.66,245.87,245.86,0.03]
[1758170611370,0.06,245.87,245.86,0.03]
[1758170617677,2.95657576,245.87,245.86,0.03]
[1758170627197,16.55216977,245.87,245.86,0.03]
[1758170627599,14.25559401,245.87,245.86,0.03]
[1758170627792,15.95216977,245.87,245.86,0.03]
[1758170627984,16.55216977,245.87,245.86,0.03]
[1758170628186,2.95657576,245.87,245.86,0.03]
[1758170628897,2.35657576,245.87,245.86,0.03]
[1758170629800,2.95657576,245.87,245.86,0.03]
[1758170630183,2.35657576,245.87,245.86,0.03]
[1758170631295,0.06,245.87,245.86,0.75]
[1758170638426,0.06,245.87,245.86,0.03]
[1758170638886,0.06,245.87,245.86,0.69]
[1758170640699,0.06,245.87,245.86,0.03]
[1758170640907,2.95657576,245.87,245.86,0.03]
[1758170641213,2.35657576,245.87,245.86,0.03]
[1758170642793,0.06,245.87,245.86,0.74]
[1758170643306,0.06,245.87,245.86,0.03]
[1758170644018,2.35657576,245.87,245.86,0.03]
[1758170647601,2.35657576,245.87,245.86,0.74]
[1758170648419,0.06,245.87,245.86,0.74]
[1758170648619,2.35657576,245.87,245.86,0.74]
[1758170650919,0.06,245.87,245.86,0.74]
[1758170653512,0.06,245.87,245.86,32.06]
[1758170654727,0.06,245.87,245.86,0.74]
[1758170657229,0.06,245.87,245.86,32.06]
[1758170657828,0.06,245.87,245.86,58.06]
[1758170658635,0.06,245.87,245.86,26.74]
[1758170658835,0.06,245.87,245.86,58.06]
[1758170659809,0.06,245.87,245.86,26.74]
[1758170660219,0.06,245.87,245.86,58.06]
[1758170661618,0.06,245.87,245.86,32.06]
[1758170664543,0.06,245.87,245.86,0.74]
[1758170664731,0.06,245.87,245.86,32.06]
[1758170674546,0.06,245.87,245.86,0.74]
[1758170674734,0.06,245.87,245.86,32.04]
[1758170677235,0.06,245.87,245.86,58.04]
[1758170678545,0.06,245.87,245.86,57.33]
[1758170678748,0.06,245.87,245.86,58.04]
[1758170679533,0.06,245.87,245.86,26.74]
[1758170679854,0.06,245.87,245.86,58.04]
[1758170680246,0.06,245.87,245.86,57.33]
[1758170680747,0.06,245.87,245.86,58.04]
[1758170681745,0.06,245.87,245.86,57.33]
[1758170681944,0.06,245.87,245.86,58.04]
[1758170689737,0.06,245.87,245.86,26.74]
[1758170689936,0.06,245.87,245.86,57.31]
[1758170691235,0.06,245.87,245.86,58.02]
[1758170695153,0.06,245.87,245.86,57.31]
[1758170696844,0.06,245.87,245.86,58.02]
[1758170700662,0.06,245.87,245.86,58.30432314]
[1758170701241,0.06,245.87,245.86,59.93169554]
[1758170703365,0.06,245.87,245.86,58.30432314]
[1758170704285,0.06,245.87,245.86,27.02432314]
[1758170704568,0.06,245.87,245.86,58.30432314]
[1758170706271,4.12718997,245.87,245.86,31.31]
[1758170707958,4.72718997,245.87,245.86,0.03]
[1758170708463,6.19654507,245.87,245.86,0.03]
[1758170713075,36.7004699,245.87,245.81,0.03]
[1758170713255,1.4693551,245.83,245.81,0.03]
[1758170713450,1.4693551,245.82,245.78,32.02461387]
[1758170713675,1.4693551,245.79,245.78,32.02461387]
[1758170714690,1.4693551,245.8,245.78,32.02461387]
[1758170714876,4.06834825,245.8,245.78,32.02461387]
[1758170716384,4.06834825,245.8,245.78,32.05461387]
[1758170716683,4.06834825,245.8,245.78,63.33461387]
[1758170716982,4.06834825,245.8,245.78,32.05461387]
[1758170717289,4.06834825,245.8,245.78,63.33461387]
[1758170718781,4.06834825,245.8,245.78,64.03461387]
[1758170719290,4.06834825,245.8,245.78,32.05461387]
[1758170719470,14.23845692,245.82,245.78,64.03461387]
[1758170719673,1.4693551,245.81,245.78,64.03461387]
[1758170719871,1.4693551,245.81,245.78,32.75461387]
[1758170720086,1.4693551,245.81,245.78,64.03461387]
[1758170720767,4.06801724,245.82,245.79,0.7]
[1758170720968,4.06801724,245.82,245.79,31.98]
[1758170721165,4.06801724,245.82,245.8,42.14887083]
[1758170721383,4.06801724,245.82,245.81,0.7]
[1758170721575,14.23639167,245.85,245.81,0.7]
[1758170721784,14.23639167,245.85,245.82,31.28]
[1758170721991,14.23639167,245.85,245.83,0.7]
[1758170722194,14.23639167,245.85,245.84,0.7]
[1758170722666,14.23639167,245.85,245.84,31.98]
[1758170723478,14.23639167,245.85,245.84,0.7]
[1758170723677,14.23639167,245.85,245.84,31.98]
[1758170725498,14.23639167,245.85,245.84,31.28]
[1758170730307,14.23639167,245.85,245.83,0.7]
[1758170730513,14.23639167,245.85,245.84,31.26]
[1758170733596,14.29639167,245.85,245.84,31.26]
[1758170736416,16.59347954,245.85,245.84,31.26]
[1758170736709,16.59347954,245.85,245.82,0.7]
[1758170736892,16.59347954,245.85,245.82,31.96]
[1758170737092,16.59347954,245.85,245.83,0.7]
[1758170737981,2.29708787,245.84,245.8,0.7]
[1758170738187,2.29708787,245.82,245.78,63.31461387]
[1758170738398,2.29708787,245.81,245.78,64.01461387]
[1758170738603,2.29708787,245.8,245.78,63.31461387]
[1758170738791,2.29708787,245.8,245.78,32.05461387]
[1758170739404,2.29708787,245.8,245.78,32.75461387]
[1758170740000,4.06851377,245.79,245.78,32.75461387]
[1758170740313,4.06851377,245.79,245.78,32.05461387]
[1758170740490,6.36560164,245.79,245.78,32.05461387]
[1758170740691,6.36560164,245.79,245.78,32.75461387]
[1758170742709,6.36560164,245.79,245.78,32.05461387]
[1758170743405,6.36560164,245.79,245.78,32.75461387]
[1758170744494,6.36560164,245.79,245.78,32.05461387]
[1758170751027,4.06851377,245.79,245.78,32.05461387]
[1758170751321,6.36560164,245.79,245.78,32.05461387]
[1758170754625,6.96560164,245.79,245.78,6.80824338]
[1758170754803,6.96560164,245.79,245.78,1e-08]
[1758170755611,6.36560164,245.79,245.78,1e-08]
[1758170759433,4.06851377,245.79,245.78,1e-08]
[1758170759740,4.06851377,245.79,245.78,0.68000001]
[1758170768506,4.06851377,245.79,245.78,1e-08]
[1758170769110,4.06851377,245.79,245.78,0.66000001]
[1758170769742,4.12851377,245.79,245.78,0.66000001]
[1758170771243,0.06,245.79,245.78,31.90000001]
[1758170771539,0.06,245.79,245.78,42.07046228]
[1758170772637,0.06,245.79,245.78,0.66000001]
[1758170772844,0.06,245.79,245.78,31.90000001]
[1758170773140,0.06,245.79,245.78,36.02806999]
[1758170773716,0.06,245.79,245.78,30.78806999]
[1758170773926,0.06,245.79,245.78,62.02806999]
[1758170774125,0.06,245.79,245.78,26.66000001]
[1758170774743,0.06,245.79,245.78,57.90000001]
[1758170775118,0.06,245.79,245.78,58.18432315]
[1758170775529,0.06,245.79,245.78,26.94432315]
[1758170775729,0.06,245.79,245.78,58.18432315]
[1758170783140,0.06,245.79,245.78,71.77991716]
[1758170783446,0.06,245.79,245.78,73.40762067]
[1758170796981,0.06,245.79,245.78,42.16762067]
[1758170797280,0.06,245.79,245.78,73.38762067]
[1758170801586,0.06,245.79,245.78,42.16762067]
[1758170801763,0.06,245.79,245.78,73.38762067]
[1758170814016,0.06,245.82,245.81,26.0]
[1758170814315,0.06,245.82,245.81,57.89114141]
[1758170814511,0.06,245.82,245.81,62.63932415]
[1758170814712,0.06,245.82,245.81,64.26669656]
[1758170820700,0.06,245.84,245.81,64.26669656]
[1758170820701,0.06,245.84,245.82,13.87991715]
[1758170821023,0.06,245.84,245.83,31.89110831]
[1758170821198,0.06,245.84,245.83,32.58110831]
[1758170821399,0.06,245.87,245.86,39.87991715]
[1758170821628,0.06,245.87,245.86,71.48665269]
[1758170822091,0.06,245.87,245.86,73.11369412]
[1758170822906,0.06,245.87,245.86,77.87104952]
[1758170823709,0.06,245.88,245.87,0.28432314]
[1758170823897,0.06,245.88,245.87,14.56991715]
[1758170824100,0.06,245.9,245.87,14.56991715]
[1758170824300,0.06,245.9,245.88,46.1766196]
[1758170825025,0.06,245.9,245.88,50.24364416]
[1758170825528,0.06,245.92,245.91,39.87991715]
[1758170825699,0.06,245.92,245.91,71.48656999]
[1758170825901,0.06,245.92,245.91,72.17656999]
[1758170826219,0.06,245.92,245.91,73.39649544]
[1758170826822,0.06,245.92,245.91,77.46302384]
[1758170827920,0.6,245.98,245.92,0.28432314]
[1758170828122,0.66,245.97,245.96,39.87991715]
[1758170828624,0.66,245.97,245.96,71.05991715]
[1758170829122,0.66,245.97,245.96,57.46432314]
[1758170829321,0.66,245.97,245.96,26.28432314]
[1758170829623,0.66,245.97,245.96,57.46432314]
[1758170833006,0.06,245.97,245.96,57.46432314]
[1758170834634,0.06,245.97,245.96,59.09096758]
[1758170837129,0.06,245.97,245.96,47.37656159]
[1758170844737,0.1,245.99,245.98,13.87991715]
[1758170844915,0.1,245.99,245.98,45.05991715]
[1758170845120,0.1,245.99,245.98,45.74991715]
[1758170845516,0.1,245.99,245.98,47.3762309]
[1758170847432,0.1,245.99,245.98,46.6662309]
[1758170847633,0.1,245.99,245.98,1.62631375]
[1758170847835,0.7,245.99,245.98,1.62631375]
[1758170848026,0.7,245.99,245.98,32.78631375]
[1758170848345,0.7,245.99,245.98,31.16]
[1758170850122,0.1,245.99,245.98,31.16]
[1758170850846,0.7,245.99,245.98,31.16]
[1758170851040,0.1,245.99,245.98,31.16]
[1758170851238,0.1,245.99,245.98,31.44432314]
[1758170851440,0.1,245.99,245.98,33.07083528]
[1758170852649,0.1,245.99,245.98,31.44432314]
[1758170854627,0.1,245.99,245.98,45.03991715]
[1758170854934,0.1,245.99,245.98,45.75991715]
[1758170858244,0.1,245.99,245.98,47.38623091]
[1758170859455,3.94374643,246.08,246.01,26.0]
[1758170859661,3.94374643,246.08,246.02,31.16]
[1758170860346,3.94374643,246.08,246.02,41.31837841]
[1758170860749,4.06349706,246.1,246.03,0.28432314]
[1758170861050,4.06349706,246.1,246.04,31.16]
[1758170861937,0.1,246.12,246.07,26.0]
[1758170862140,0.1,246.12,246.08,31.16]
[1758170863440,0.1,246.12,246.08,31.88]
[1758170864144,0.1,246.12,246.11,26.0]
[1758170864463,4.16310892,246.12,246.11,31.16]
[1758170864756,4.16310892,246.12,246.09,31.16]
[1758170866247,0.1,246.12,246.09,31.16]
[1758170866567,0.1,246.12,246.1,31.22]
[1758170867663,0.1,246.12,246.1,31.94]
[1758170867869,0.1,246.12,246.11,0.72]
[1758170869868,0.1,246.12,246.11,31.24]
[1758170870257,4.16308311,246.12,246.11,31.24]
[1758170870748,4.16308311,246.12,246.08,2.29365407]
[1758170870950,4.16308311,246.12,246.09,31.24]
[1758170871364,4.16308311,246.12,246.08,3.01365407]
[1758170871550,4.16308311,246.12,246.09,31.24]
[1758170871762,6.45673718,246.12,246.09,31.24]
[1758170872259,4.16308311,246.12,246.09,31.24]
[1758170872455,4.16308311,246.12,246.09,31.96]
[1758170872652,4.16308311,246.12,246.09,31.24]
[1758170874166,4.16308311,246.12,246.07,0.72]
[1758170874555,4.16308311,246.12,246.08,31.22]
[1758170874851,4.16308311,246.12,246.08,0.72]
[1758170875259,4.16308311,246.12,246.09,31.22]
[1758170875946,2.29365407,246.1,246.05,10.15593461]
[1758170876159,2.29365407,246.09,246.02,0.72]
[1758170876370,2.29365407,246.07,246.03,31.28]
[1758170876568,2.29365407,246.08,246.03,32.0]
[1758170877158,4.06388426,246.07,246.04,0.72]
[1758170877357,4.06388426,246.07,246.04,32.0]
[1758170878675,4.06388426,246.07,246.04,0.72]
[1758170878857,6.35753833,246.07,246.04,31.28]
[1758170879176,6.35753833,246.07,246.03,31.28]
[1758170879354,6.35753833,246.07,246.01,26.0]
[1758170879555,6.35753833,246.07,246.02,32.0]
[1758170880489,6.35753833,246.07,246.02,0.72]
[1758170880666,6.35753833,246.07,246.03,31.28]
[1758170880872,6.35753833,246.07,246.03,32.0]
[1758170881077,6.35753833,246.07,246.03,31.28]
[1758170881268,6.35753833,246.07,246.03,31.98]
[1758170882176,4.06388426,246.07,246.04,31.98]
[1758170882372,4.06388426,246.07,246.05,0.72]
[1758170882884,4.06388426,246.07,246.04,31.26]
[1758170883099,4.06388426,246.07,246.05,0.68]
[1758170884585,4.06388426,246.07,245.99,0.28432314]
[1758170884891,6.35753833,246.07,246.03,0.68]
[1758170885066,6.35753833,246.07,246.0,31.26]
[1758170885368,6.35753833,246.07,246.01,0.68]
[1758170885981,6.35753833,246.07,246.02,31.24]
[1758170886178,4.06388426,246.07,246.03,31.92]
[1758170886390,4.06388426,246.07,246.04,0.68]
[1758170886573,4.06388426,246.07,246.05,0.68]
[1758170886888,6.35734046,246.09,246.06,0.68]
[1758170887991,4.06368639,246.09,246.07,0.68]
[1758170888286,6.35734046,246.09,246.07,0.68]
[1758170888794,4.06368639,246.09,246.05,0.68]
[1758170889089,2.29365407,246.06,246.0,0.68]
[1758170889388,2.29365407,246.04,246.01,26.0]
[1758170889688,2.29365407,246.04,245.95,13.76775558]
[1758170889689,2.29365407,246.02,245.99,0.68]
[1758170890184,2.29365407,246.03,246.0,31.94]
[1758170890390,2.29365407,246.04,246.01,0.68]
[1758170890785,2.29365407,246.05,246.01,0.68]
[1758170890976,2.29365407,246.04,246.01,0.68]
[1758170892081,6.35812201,246.04,246.01,0.68]
[1758170892696,4.06446794,246.04,246.01,0.68]
[1758170892873,6.35812201,246.04,246.01,0.68]
[1758170893385,2.29365407,246.04,246.0,31.24]
[1758170893688,2.29365407,246.04,246.01,0.68]
[1758170894590,2.29365407,246.04,246.0,31.24]
[1758170894973,2.29365407,246.04,246.01,0.68]
[1758170895699,6.35805905,246.04,246.02,0.68]
[1758170895992,4.06440498,246.04,246.02,0.68]
[1758170896296,6.35784249,246.06,245.99,0.03]
[1758170896597,6.35784249,246.06,246.03,0.68]
[1758170896993,4.06418842,246.06,246.03,0.68]
[1758170898436,0.06,246.09,246.03,0.68]
[1758170898576,0.06,246.09,246.04,31.24]
[1758170898773,0.06,246.09,246.05,0.68]
[1758170898976,0.06,246.09,246.06,0.68]
[1758170899582,0.06,246.09,246.07,0.68]
[1758170899790,4.12360624,246.09,246.07,0.68]
[1758170901706,4.12360624,246.09,246.05,31.24]
[1758170901886,6.41726031,246.09,246.05,31.24]
[1758170902095,2.29365407,246.08,246.05,0.68]
[1758170902299,2.29365407,246.08,246.04,0.68]
[1758170902491,2.29365407,246.08,246.05,0.68]
[1758170902907,4.12360624,246.09,246.05,0.68]
[1758170903212,6.41726031,246.09,246.05,0.68]
[1758170904084,6.41726031,246.09,246.03,31.24]
[1758170904410,4.12360624,246.09,246.04,0.68]
[1758170906890,0.06,246.09,246.06,26.0]
[1758170907094,0.06,246.09,246.07,26.68]
[1758170907291,0.06,246.09,246.08,31.22]
[1758170907504,0.06,246.09,246.08,31.9]
[1758170912502,0.06,246.09,246.08,0.68]
[1758170912816,0.06,246.09,246.08,31.9]
[1758170917826,0.06,246.09,246.08,0.68]
[1758170918018,0.06,246.09,246.08,31.88]
[1758170922131,0.06,246.09,246.08,31.86]
[1758170923930,4.12360116,246.09,246.08,31.18]
[1758170925625,4.12360116,246.09,246.06,0.7]
[1758170925940,4.12360116,246.09,246.07,31.18]
[1758170926230,4.12360116,246.09,246.05,26.0]
[1758170926434,4.12360116,246.09,246.07,0.7]
[1758170927631,4.12360116,246.09,246.06,31.16]
[1758170927824,4.12360116,246.09,246.02,26.0]
[1758170928025,4.12360116,246.09,246.03,31.86]
[1758170928224,4.12360116,246.09,246.04,0.7]
[1758170928428,4.12360116,246.09,246.05,31.16]
[1758170928619,4.12360116,246.09,246.06,0.7]
[1758170928936,5.59042088,246.09,246.07,31.86]
[1758170930233,4.12360116,246.09,246.07,31.86]
[1758170930433,4.12360116,246.09,246.07,0.7]
[1758170930644,4.12360116,246.09,246.07,31.86]
[1758170931615,4.12360116,246.09,246.07,0.7]
[1758170932538,5.59042088,246.09,246.04,0.7]
[1758170932844,5.59042088,246.09,246.05,0.7]
[1758170933027,5.59042088,246.09,246.06,31.86]
[1758170933213,1.46681972,246.08,246.06,31.86]
[1758170933936,1.46681972,246.08,246.06,31.16]
[1758170934114,1.46681972,246.08,246.06,31.86]
[1758170934310,4.06388426,246.07,246.06,0.7]
[1758170941546,4.06388426,246.07,246.06,0.73]
[1758170942044,5.53070398,246.07,246.06,0.03]
[1758170946529,4.06388426,246.07,246.06,0.03]
[1758170946736,5.53070398,246.07,246.06,0.03]
[1758170951735,24.99357687,246.07,246.06,0.03]
[1758170951940,37.87260902,246.07,246.03,1e-08]
[1758170952139,41.06241373,246.04,246.03,1e-08]
[1758170952451,43.78173523,246.04,246.03,1e-08]
[1758170952957,47.846115,246.04,246.03,1e-08]
[1758170955360,46.75390112,246.04,246.03,1e-08]
[1758170957151,77.93390112,246.04,246.03,1e-08]
[1758170957349,45.2870814,246.04,246.03,1e-08]
[1758170957546,77.93390112,246.04,246.03,1e-08]
[1758170960664,46.75390112,246.04,246.03,1e-08]
[1758170960844,77.93390112,246.04,246.03,1e-08]
[1758170969876,78.76232526,246.04,246.03,1e-08]
[1758170972677,47.58232526,246.04,246.03,1e-08]
[1758170972880,78.76232526,246.04,246.03,0.66000001]
[1758170973499,78.76232526,246.04,246.03,1e-08]
[1758170974479,31.69148739,246.04,246.03,1e-08]
[1758170974671,4.06437977,246.04,246.03,0.66000001]
[1758170976859,14.22359491,246.07,246.03,0.66000001]
[1758170977271,4.06388426,246.07,246.03,0.66000001]
[1758170977486,0.06,246.08,246.03,0.66000001]
[1758170978881,4.12377925,246.08,246.03,0.66000001]
[1758170979184,0.06,246.08,246.03,26.66000001]
[1758170979365,0.06,246.08,246.04,0.66]
[1758170979567,0.06,246.07,246.04,0.66]
[1758170981191,4.12400183,246.07,246.04,0.66]
[1758170985770,6.41924569,246.07,246.03,1e-08]
[1758170985969,4.12400183,246.07,246.05,0.66]
[1758170986984,4.12400183,246.07,246.06,0.66]
[1758170988892,0.06,246.07,246.06,0.66]
[1758170993091,4.06404941,246.06,246.04,0.66]
[1758170993677,4.06404941,246.06,246.03,1e-08]
[1758170993883,4.06404941,246.06,246.04,0.66]
[1758170994386,4.06404941,246.06,246.05,0.66]
[1758170994599,0.06,246.07,246.05,0.66]
[1758170994778,3.05524386,246.07,246.03,1e-08]
[1758170994980,6.35962363,246.04,246.03,1e-08]
[1758170996214,4.06437977,246.04,246.03,0.66000001]
[1758170997585,2.29524386,246.06,246.03,0.66000001]
[1758170997586,4.06404941,246.06,246.03,0.66000001]
[1758170997792,6.35929327,246.06,246.03,0.66000001]
[1758170998691,2.29524386,246.05,246.03,1e-08]
[1758170999781,4.06437977,246.04,246.03,1e-08]
[1758170999982,6.35962363,246.04,246.03,0.70000001]
[1758171000198,7.07962363,246.04,246.03,1e-08]
[1758171000402,6.35962363,246.04,246.03,1e-08]
[1758171001192,4.12402771,246.07,246.03,0.70000001]
[1758171001395,0.06,246.07,246.03,0.70000001]
[1758171002409,0.06,246.07,246.03,31.86000001]
[1758171002610,0.06,246.07,246.04,0.7]
[1758171012218,4.12392519,246.07,246.05,0.68]
[1758171012418,4.12392519,246.07,246.06,0.68]
[1758171013690,4.12392519,246.07,246.05,0.68]
[1758171014008,0.06,246.07,246.06,0.68]
[1758171023418,0.06,246.07,246.06,31.84]
[1758171031211,0.06,246.07,246.06,31.14]
[1758171031527,0.06,246.07,246.05,26.0]
[1758171031724,0.68,246.06,246.03,1e-08]
[1758171032024,4.74404941,246.06,246.03,1e-08]
[1758171032723,0.06,246.07,246.03,1e-08]
[1758171032928,0.06,246.07,246.04,31.14]
[1758171033119,0.73,246.07,246.04,31.14]
[1758171033507,4.79390709,246.07,246.04,31.14]
[1758171034230,0.06,246.07,246.03,0.70000001]
[1758171034411,0.06,246.07,246.04,31.14]
[1758171035617,0.06,246.07,246.05,0.7]
[1758171035824,0.06,246.07,246.04,31.84]
[1758171038550,0.06,246.07,246.05,0.7]